[Event "Titled Tuesday Blitz July 25 Early 2023"]
[White "Saim, Mohamed Ilias"]
[Black "Nugumanov, Bakhtiyar"]
[WhiteFideId "7900465"]
[BlackFideId "13701797"]
[WhiteElo "1932"]
[BlackElo "2246"]
[Result "1-0"]
[Round "9"]
[TimeControl "180+2"]
[Date "2023.07.25"]
[WhiteClock "0:01:44"]
[BlackClock "0:00:00"]
[Board "169"]

1. c4 {[%clk 0:02:59]}  e6 {[%clk 0:02:35]} 2. g3 {[%clk 0:02:50]}  Nf6 {[%clk 0:02:35]} 3. Bg2 {[%clk 0:02:50]}  c5 {[%clk 0:02:36]} 4. e4 {[%clk 0:02:49]}  Be7 {[%clk 0:02:36]} 5. Nc3 {[%clk 0:02:49]}  d6 {[%clk 0:02:37]} 6. Nge2 {[%clk 0:02:47]}  O-O {[%clk 0:02:37]} 7. O-O {[%clk 0:02:47]}  e5 {[%clk 0:02:38]} 8. f4 {[%clk 0:02:44]}  Nc6 {[%clk 0:02:38]} 9. d3 {[%clk 0:02:34]}  Bg4 {[%clk 0:02:33]} 10. h3 {[%clk 0:02:30]}  Bd7 {[%clk 0:02:33]} 11. f5 {[%clk 0:02:29]}  g6 {[%clk 0:02:32]} 12. g4 {[%clk 0:02:29]}  Ne8 {[%clk 0:02:31]} 13. Bh6 {[%clk 0:02:25]}  Ng7 {[%clk 0:02:29]} 14. Nd5 {[%clk 0:02:13]}  f6 {[%clk 0:02:28]} 15. Ng3 {[%clk 0:01:58]}  Nd4 {[%clk 0:02:28]} 16. Kh1 {[%clk 0:01:47]}  b5 {[%clk 0:00:00]} 17. b3 {[%clk 0:01:44]} 1-0


[Site "https://www.chess.com"]

[Event "Titled Tuesday Blitz July 25 Early 2023"]
[White "Navyblue1"]
[Black "Semenova, Alina"]
[BlackFideId "24113875"]
[WhiteElo "1908"]
[BlackElo "2075"]
[Result "1/2-1/2"]
[Round "9"]
[TimeControl "180+2"]
[Date "2023.07.25"]
[WhiteClock "0:00:06"]
[BlackClock "0:00:38"]
[Board "177"]

1. d4 {[%clk 0:02:57]}  d5 {[%clk 0:03:00]} 2. c4 {[%clk 0:02:56]}  e6 {[%clk 0:03:00]} 3. Nc3 {[%clk 0:02:51]}  Nf6 {[%clk 0:03:00]} 4. cxd5 {[%clk 0:02:50]}  exd5 {[%clk 0:03:00]} 5. Bg5 {[%clk 0:02:48]}  Be7 {[%clk 0:03:00]} 6. Qc2 {[%clk 0:02:46]}  O-O {[%clk 0:02:58]} 7. e3 {[%clk 0:02:47]}  c6 {[%clk 0:02:56]} 8. Bd3 {[%clk 0:02:38]}  h6 {[%clk 0:02:56]} 9. Bh4 {[%clk 0:02:36]}  Re8 {[%clk 0:02:56]} 10. Nge2 {[%clk 0:02:36]}  Ne4 {[%clk 0:02:50]} 11. Bxe7 {[%clk 0:02:29]}  Qxe7 {[%clk 0:02:51]} 12. O-O {[%clk 0:02:23]}  Nd7 {[%clk 0:02:42]} 13. Rae1 {[%clk 0:02:19]}  Ndf6 {[%clk 0:02:39]} 14. f3 {[%clk 0:01:58]}  Nd6 {[%clk 0:02:39]} 15. Ng3 {[%clk 0:01:41]}  b6 {[%clk 0:02:06]} 16. e4 {[%clk 0:00:58]}  dxe4 {[%clk 0:02:05]} 17. fxe4 {[%clk 0:00:59]}  Bb7 {[%clk 0:01:44]} 18. e5 {[%clk 0:00:55]}  Ng4 {[%clk 0:01:44]} 19. h3 {[%clk 0:00:51]}  Qh4 {[%clk 0:01:40]} 20. hxg4 {[%clk 0:00:46]}  Qxg3 {[%clk 0:01:36]} 21. Bh7+ {[%clk 0:00:19]}  Kh8 {[%clk 0:01:22]} 22. Be4 {[%clk 0:00:16]}  Nxe4 {[%clk 0:01:20]} 23. Qxe4 {[%clk 0:00:15]}  Rab8 {[%clk 0:01:20]} 24. Re3 {[%clk 0:00:14]}  Qh4 {[%clk 0:01:20]} 25. Rh3 {[%clk 0:00:12]}  Qe7 {[%clk 0:01:17]} 26. Qf4 {[%clk 0:00:12]}  c5 {[%clk 0:01:15]} 27. dxc5 {[%clk 0:00:11]}  Qxe5 {[%clk 0:01:15]} 28. Qxe5 {[%clk 0:00:11]}  Rxe5 {[%clk 0:01:15]} 29. cxb6 {[%clk 0:00:12]}  axb6 {[%clk 0:01:12]} 30. Rxf7 {[%clk 0:00:12]}  Bd5 {[%clk 0:01:09]} 31. Rf2 {[%clk 0:00:11]}  Bc4 {[%clk 0:01:07]} 32. Kh2 {[%clk 0:00:11]}  b5 {[%clk 0:01:05]} 33. Rg3 {[%clk 0:00:10]}  Be6 {[%clk 0:01:05]} 34. a3 {[%clk 0:00:10]}  b4 {[%clk 0:01:02]} 35. axb4 {[%clk 0:00:09]}  Rxb4 {[%clk 0:01:03]} 36. Rf8+ {[%clk 0:00:09]}  Kh7 {[%clk 0:01:03]} 37. Re8 {[%clk 0:00:08]}  Rxg4 {[%clk 0:00:54]} 38. Rxg4 {[%clk 0:00:07]}  Rh5+ {[%clk 0:00:55]} 39. Kg3 {[%clk 0:00:07]}  Bxg4 {[%clk 0:00:55]} 40. Kxg4 {[%clk 0:00:08]}  Rg5+ {[%clk 0:00:55]} 41. Kf4 {[%clk 0:00:08]}  Rxg2 {[%clk 0:00:55]} 42. Re2 {[%clk 0:00:08]}  Rg5 {[%clk 0:00:53]} 43. b4 {[%clk 0:00:08]}  Rg6 {[%clk 0:00:53]} 44. b5 {[%clk 0:00:08]}  Rb6 {[%clk 0:00:53]} 45. Kf5 {[%clk 0:00:08]}  g6+ {[%clk 0:00:53]} 46. Kg4 {[%clk 0:00:08]}  h5+ {[%clk 0:00:51]} 47. Kg5 {[%clk 0:00:08]}  Rb7 {[%clk 0:00:42]} 48. Re6 {[%clk 0:00:08]}  Rc7 {[%clk 0:00:40]} 49. Re5 {[%clk 0:00:06]}  Rxc3 {[%clk 0:00:39]} 50. Re7+ {[%clk 0:00:07]}  Kg8 {[%clk 0:00:38]} 51. Kxg6 {[%clk 0:00:07]}  Kf8 {[%clk 0:00:38]} 52. Rh7 {[%clk 0:00:06]}  Rb3 {[%clk 0:00:35]} 53. Rxh5 {[%clk 0:00:06]}  Ke7 {[%clk 0:00:35]} 54. Re5+ {[%clk 0:00:06]}  Kd6 {[%clk 0:00:35]} 55. Rg5 {[%clk 0:00:06]}  Kc7 {[%clk 0:00:35]} 56. Kf6 {[%clk 0:00:06]}  Kb6 {[%clk 0:00:36]} 57. Ke6 {[%clk 0:00:06]}  Rxb5 {[%clk 0:00:37]} 58. Rxb5+ {[%clk 0:00:06]}  Kxb5 {[%clk 0:00:38]} 1/2-1/2


[Site "https://www.chess.com"]

[Event "Titled Tuesday Blitz July 25 Early 2023"]
[White "Hartikainen, Jarmo"]
[Black "Piesik, Piotr"]
[WhiteFideId "503134"]
[BlackFideId "1136194"]
[WhiteElo "2078"]
[BlackElo "2608"]
[Result "0-1"]
[Round "9"]
[TimeControl "180+2"]
[Date "2023.07.25"]
[WhiteClock "0:00:07"]
[BlackClock "0:01:44"]
[Board "179"]

1. e4 {[%clk 0:03:00]}  g6 {[%clk 0:02:59]} 2. d4 {[%clk 0:03:00]}  Bg7 {[%clk 0:02:59]} 3. Nc3 {[%clk 0:03:00]}  c6 {[%clk 0:03:00]} 4. Be3 {[%clk 0:02:59]}  d5 {[%clk 0:03:00]} 5. e5 {[%clk 0:02:59]}  Nh6 {[%clk 0:03:00]} 6. Be2 {[%clk 0:02:47]}  Nf5 {[%clk 0:03:00]} 7. h4 {[%clk 0:02:43]}  Nxe3 {[%clk 0:02:59]} 8. fxe3 {[%clk 0:02:43]}  f6 {[%clk 0:02:56]} 9. h5 {[%clk 0:02:29]}  fxe5 {[%clk 0:02:49]} 10. hxg6 {[%clk 0:02:25]}  hxg6 {[%clk 0:02:48]} 11. Rxh8+ {[%clk 0:02:24]}  Bxh8 {[%clk 0:02:49]} 12. Nf3 {[%clk 0:02:08]}  e4 {[%clk 0:02:41]} 13. Ne5 {[%clk 0:02:02]}  Bxe5 {[%clk 0:02:40]} 14. dxe5 {[%clk 0:02:01]}  Nd7 {[%clk 0:02:38]} 15. Qd4 {[%clk 0:01:22]}  e6 {[%clk 0:02:38]} 16. O-O-O {[%clk 0:01:19]}  Qh4 {[%clk 0:02:24]} 17. Rf1 {[%clk 0:00:53]}  Qh8 {[%clk 0:02:08]} 18. Nxe4 {[%clk 0:00:41]}  dxe4 {[%clk 0:02:03]} 19. Qxe4 {[%clk 0:00:42]}  Nxe5 {[%clk 0:02:00]} 20. Bd3 {[%clk 0:00:23]}  Bd7 {[%clk 0:01:58]} 21. Qd4 {[%clk 0:00:20]}  Nxd3+ {[%clk 0:01:52]} 22. Qxd3 {[%clk 0:00:19]}  O-O-O {[%clk 0:01:52]} 23. Qxg6 {[%clk 0:00:19]}  e5 {[%clk 0:01:49]} 24. Rf7 {[%clk 0:00:13]}  Qh1+ {[%clk 0:01:45]} 25. Kd2 {[%clk 0:00:13]}  Bf5+ {[%clk 0:01:45]} 26. Kc3 {[%clk 0:00:10]}  Qe1+ {[%clk 0:01:45]} 27. Kb3 {[%clk 0:00:07]}  Bxg6 {[%clk 0:01:44]} 0-1


[Site "https://www.chess.com"]

[Event "Titled Tuesday Blitz July 25 Early 2023"]
[White "So, Wesley"]
[Black "Vachier-Lagrave, Maxime"]
[WhiteFideId "5202213"]
[BlackFideId "623539"]
[WhiteElo "3114"]
[BlackElo "3156"]
[Result "1/2-1/2"]
[Round "10"]
[TimeControl "180+2"]
[Date "2023.07.25"]
[WhiteClock "0:00:44"]
[BlackClock "0:00:55"]
[Board "1"]

1. Nf3 {[%clk 0:03:00]}  d5 {[%clk 0:02:58]} 2. d4 {[%clk 0:02:58]}  Nf6 {[%clk 0:02:58]} 3. Bf4 {[%clk 0:02:59]}  e6 {[%clk 0:02:58]} 4. e3 {[%clk 0:02:59]}  c5 {[%clk 0:02:56]} 5. Nbd2 {[%clk 0:02:57]}  Nc6 {[%clk 0:02:57]} 6. c3 {[%clk 0:02:56]}  Nh5 {[%clk 0:02:57]} 7. Bg5 {[%clk 0:02:56]}  f6 {[%clk 0:02:57]} 8. Bh4 {[%clk 0:02:56]}  g6 {[%clk 0:02:58]} 9. Bd3 {[%clk 0:02:54]}  cxd4 {[%clk 0:02:55]} 10. cxd4 {[%clk 0:02:55]}  Be7 {[%clk 0:02:54]} 11. Rc1 {[%clk 0:02:55]}  O-O {[%clk 0:02:53]} 12. a3 {[%clk 0:02:55]}  Bd7 {[%clk 0:02:53]} 13. Nb3 {[%clk 0:02:43]}  Ng7 {[%clk 0:02:40]} 14. Bg3 {[%clk 0:02:37]}  Nf5 {[%clk 0:02:38]} 15. Nc5 {[%clk 0:02:34]}  Bxc5 {[%clk 0:02:37]} 16. Rxc5 {[%clk 0:02:35]}  Nxg3 {[%clk 0:02:22]} 17. hxg3 {[%clk 0:02:36]}  Rc8 {[%clk 0:02:17]} 18. O-O {[%clk 0:02:12]}  b6 {[%clk 0:02:06]} 19. Rc3 {[%clk 0:02:08]}  Ne7 {[%clk 0:02:06]} 20. Qe2 {[%clk 0:02:02]}  Rxc3 {[%clk 0:02:06]} 21. bxc3 {[%clk 0:02:02]}  Qc7 {[%clk 0:02:04]} 22. c4 {[%clk 0:01:59]}  Rc8 {[%clk 0:01:51]} 23. cxd5 {[%clk 0:01:55]}  exd5 {[%clk 0:01:52]} 24. Ba6 {[%clk 0:01:54]}  Qc2 {[%clk 0:01:51]} 25. Qe1 {[%clk 0:01:29]}  Rc3 {[%clk 0:01:39]} 26. Qa1 {[%clk 0:01:29]}  Kg7 {[%clk 0:01:22]} 27. Rb1 {[%clk 0:01:16]}  Bf5 {[%clk 0:01:19]} 28. Rf1 {[%clk 0:01:04]}  Rc7 {[%clk 0:00:58]} 29. a4 {[%clk 0:00:59]}  Qc3 {[%clk 0:00:59]} 30. Qa2 {[%clk 0:00:57]}  Qc2 {[%clk 0:00:54]} 31. Qa3 {[%clk 0:00:55]}  Qc3 {[%clk 0:00:54]} 32. Qd6 {[%clk 0:00:54]}  Qc6 {[%clk 0:00:54]} 33. Qb4 {[%clk 0:00:48]}  Qc3 {[%clk 0:00:54]} 34. Qd6 {[%clk 0:00:48]}  Qc6 {[%clk 0:00:54]} 35. Qb4 {[%clk 0:00:43]}  Qc3 {[%clk 0:00:55]} 36. Qd6 {[%clk 0:00:44]} 1/2-1/2


[Site "https://www.chess.com"]

[Event "Titled Tuesday Blitz July 25 Early 2023"]
[White "Cordova, Emilio"]
[Black "Bluebaum, Matthias"]
[WhiteFideId "3801497"]
[BlackFideId "24651516"]
[WhiteElo "2862"]
[BlackElo "3055"]
[Result "1/2-1/2"]
[Round "10"]
[TimeControl "180+2"]
[Date "2023.07.25"]
[WhiteClock "0:01:13"]
[BlackClock "0:01:24"]
[Board "5"]

1. Nf3 {[%clk 0:02:18]}  d5 {[%clk 0:02:59]} 2. e3 {[%clk 0:02:19]}  Nf6 {[%clk 0:02:59]} 3. c4 {[%clk 0:02:20]}  e6 {[%clk 0:03:00]} 4. Nc3 {[%clk 0:02:20]}  Bd6 {[%clk 0:03:00]} 5. b3 {[%clk 0:02:18]}  O-O {[%clk 0:03:01]} 6. Bb2 {[%clk 0:02:19]}  c5 {[%clk 0:03:02]} 7. cxd5 {[%clk 0:02:19]}  exd5 {[%clk 0:03:03]} 8. d4 {[%clk 0:02:19]}  Nc6 {[%clk 0:03:03]} 9. Be2 {[%clk 0:02:19]}  cxd4 {[%clk 0:03:04]} 10. Nxd4 {[%clk 0:02:18]}  Nxd4 {[%clk 0:03:05]} 11. Qxd4 {[%clk 0:02:18]}  Re8 {[%clk 0:03:05]} 12. O-O {[%clk 0:02:13]}  Be5 {[%clk 0:03:06]} 13. Qd2 {[%clk 0:02:12]}  d4 {[%clk 0:03:06]} 14. exd4 {[%clk 0:02:06]}  Qxd4 {[%clk 0:03:07]} 15. Qxd4 {[%clk 0:01:58]}  Bxd4 {[%clk 0:03:07]} 16. Rfd1 {[%clk 0:01:57]}  Bxc3 {[%clk 0:02:57]} 17. Bxc3 {[%clk 0:01:57]}  Rxe2 {[%clk 0:02:53]} 18. Rd8+ {[%clk 0:01:56]}  Re8 {[%clk 0:02:36]} 19. Bxf6 {[%clk 0:01:55]}  Rxd8 {[%clk 0:02:32]} 20. Bxd8 {[%clk 0:01:56]}  Be6 {[%clk 0:02:33]} 21. Bc7 {[%clk 0:01:55]}  Rc8 {[%clk 0:02:21]} 22. Rc1 {[%clk 0:01:54]}  f6 {[%clk 0:02:16]} 23. f3 {[%clk 0:01:50]}  Bd5 {[%clk 0:02:11]} 24. Kf2 {[%clk 0:01:48]}  Kf7 {[%clk 0:02:10]} 25. Bf4 {[%clk 0:01:47]}  Bc6 {[%clk 0:02:10]} 26. b4 {[%clk 0:01:45]}  Rd8 {[%clk 0:02:06]} 27. b5 {[%clk 0:01:12]}  Bxb5 {[%clk 0:02:05]} 28. Rc7+ {[%clk 0:01:13]}  Rd7 {[%clk 0:02:05]} 29. Rxd7+ {[%clk 0:01:13]}  Bxd7 {[%clk 0:02:06]} 30. Bb8 {[%clk 0:01:13]}  a6 {[%clk 0:02:06]} 31. Ke3 {[%clk 0:01:10]}  Ke6 {[%clk 0:02:02]} 32. Kd4 {[%clk 0:01:10]}  Bb5 {[%clk 0:02:02]} 33. g3 {[%clk 0:01:06]}  Bc6 {[%clk 0:02:00]} 34. f4 {[%clk 0:01:02]}  Kf5 {[%clk 0:01:51]} 35. Ke3 {[%clk 0:01:01]}  Kg4 {[%clk 0:01:48]} 36. Kf2 {[%clk 0:01:01]}  b5 {[%clk 0:01:24]} 37. Bc7 {[%clk 0:00:57]}  h5 {[%clk 0:01:06]} 38. h4 {[%clk 0:00:57]}  Kf5 {[%clk 0:00:53]} 39. Ke3 {[%clk 0:00:56]}  Be8 {[%clk 0:00:48]} 40. a3 {[%clk 0:00:55]}  g6 {[%clk 0:00:45]} 41. Bd8 {[%clk 0:00:54]}  Bf7 {[%clk 0:00:44]} 42. Ba5 {[%clk 0:00:50]}  Kg4 {[%clk 0:00:41]} 43. Kf2 {[%clk 0:00:49]}  Kf5 {[%clk 0:00:38]} 44. Ke3 {[%clk 0:00:49]}  Ke6 {[%clk 0:00:38]} 45. Kd4 {[%clk 0:00:48]}  Be8 {[%clk 0:00:37]} 46. Bd8 {[%clk 0:00:48]}  Bd7 {[%clk 0:00:37]} 47. Ba5 {[%clk 0:00:47]}  Bc6 {[%clk 0:00:36]} 48. Bd8 {[%clk 0:00:46]}  Bf3 {[%clk 0:00:36]} 49. Ba5 {[%clk 0:00:46]}  Kd7 {[%clk 0:00:35]} 50. Bc3 {[%clk 0:00:44]}  Bg4 {[%clk 0:00:34]} 51. Kc5 {[%clk 0:00:40]}  Ke6 {[%clk 0:00:34]} 52. Kd4 {[%clk 0:00:36]}  Bd1 {[%clk 0:00:32]} 53. Ba5 {[%clk 0:00:33]}  Kd7 {[%clk 0:00:29]} 54. Bc3 {[%clk 0:00:32]}  Kd6 {[%clk 0:00:30]} 55. Bb4+ {[%clk 0:00:32]}  Ke6 {[%clk 0:00:26]} 56. Ba5 {[%clk 0:00:31]}  Ba4 {[%clk 0:00:23]} 57. Bd8 {[%clk 0:00:31]}  Bb3 {[%clk 0:00:23]} 58. Ba5 {[%clk 0:00:30]}  Kd7 {[%clk 0:00:22]} 59. Bc3 {[%clk 0:00:29]}  Ke7 {[%clk 0:00:23]} 60. Bb4+ {[%clk 0:00:28]}  Ke6 {[%clk 0:00:23]} 61. Ba5 {[%clk 0:00:28]}  Kf5 {[%clk 0:00:23]} 62. Ke3 {[%clk 0:00:28]}  Kg4 {[%clk 0:00:19]} 63. Kf2 {[%clk 0:00:28]}  g5 {[%clk 0:00:17]} 64. fxg5 {[%clk 0:00:26]}  fxg5 {[%clk 0:00:17]} 65. Bd8 {[%clk 0:00:25]}  gxh4 {[%clk 0:00:17]} 66. gxh4 {[%clk 0:00:22]}  Kf4 {[%clk 0:00:18]} 67. Ke2 {[%clk 0:00:22]}  Ke4 {[%clk 0:00:19]} 68. Kd2 {[%clk 0:00:22]}  Kd4 {[%clk 0:00:18]} 69. Kc1 {[%clk 0:00:20]}  Be6 {[%clk 0:00:13]} 70. Kb2 {[%clk 0:00:20]}  Kc4 {[%clk 0:00:14]} 71. Bg5 {[%clk 0:00:20]}  Bf5 {[%clk 0:00:13]} 72. Bh6 {[%clk 0:00:20]}  Bg4 {[%clk 0:00:14]} 73. Bg5 {[%clk 0:00:21]}  Bf3 {[%clk 0:00:14]} 74. Bh6 {[%clk 0:00:22]}  Be4 {[%clk 0:00:15]} 75. Bg5 {[%clk 0:00:23]}  Bc6 {[%clk 0:00:16]} 76. Bh6 {[%clk 0:00:24]}  Kd5 {[%clk 0:00:16]} 77. Bg5 {[%clk 0:00:25]}  Ke4 {[%clk 0:00:16]} 78. Bh6 {[%clk 0:00:25]}  Kf5 {[%clk 0:00:17]} 79. Bg5 {[%clk 0:00:25]}  Kg6 {[%clk 0:00:18]} 80. Bd8 {[%clk 0:00:26]}  Kf7 {[%clk 0:00:18]} 81. Bg5 {[%clk 0:00:25]}  Ke6 {[%clk 0:00:18]} 82. Kc3 {[%clk 0:00:25]}  Kd5 {[%clk 0:00:19]} 83. Kb2 {[%clk 0:00:24]}  Kc4 {[%clk 0:00:19]} 84. Bf6 {[%clk 0:00:24]}  a5 {[%clk 0:00:19]} 85. Bg5 {[%clk 0:00:25]}  b4 {[%clk 0:00:19]} 86. axb4 {[%clk 0:00:25]}  axb4 {[%clk 0:00:20]} 87. Be7 {[%clk 0:00:25]}  b3 {[%clk 0:00:20]} 88. Bg5 {[%clk 0:00:26]}  Bd5 {[%clk 0:00:21]} 89. Bh6 {[%clk 0:00:26]}  Kd3 {[%clk 0:00:22]} 90. Bg5 {[%clk 0:00:27]}  Ke4 {[%clk 0:00:23]} 91. Bf6 {[%clk 0:00:26]}  Kf5 {[%clk 0:00:23]} 92. Bg5 {[%clk 0:00:27]}  Ke6 {[%clk 0:00:24]} 93. Kc3 {[%clk 0:00:28]}  Kf7 {[%clk 0:00:24]} 94. Kb2 {[%clk 0:00:29]}  Kg6 {[%clk 0:00:24]} 95. Kc3 {[%clk 0:00:29]}  Kf5 {[%clk 0:00:25]} 96. Kb2 {[%clk 0:00:30]}  Bg8 {[%clk 0:00:26]} 97. Kb1 {[%clk 0:00:30]}  Ke4 {[%clk 0:00:27]} 98. Kb2 {[%clk 0:00:31]}  Kd4 {[%clk 0:00:28]} 99. Bf6+ {[%clk 0:00:31]}  Kd3 {[%clk 0:00:28]} 100. Bg5 {[%clk 0:00:32]}  Kc4 {[%clk 0:00:29]} 101. Bf6 {[%clk 0:00:33]}  Bf7 {[%clk 0:00:30]} 102. Bg5 {[%clk 0:00:33]}  Kd4 {[%clk 0:00:30]} 103. Bh6 {[%clk 0:00:34]}  Ke4 {[%clk 0:00:31]} 104. Bg5 {[%clk 0:00:34]}  Kf3 {[%clk 0:00:32]} 105. Kc3 {[%clk 0:00:34]}  Ke2 {[%clk 0:00:31]} 106. Kb2 {[%clk 0:00:35]}  Kd1 {[%clk 0:00:32]} 107. Bf6 {[%clk 0:00:35]}  Kd2 {[%clk 0:00:32]} 108. Bg5+ {[%clk 0:00:35]}  Kd3 {[%clk 0:00:32]} 109. Bf6 {[%clk 0:00:36]}  Be6 {[%clk 0:00:33]} 110. Bg5 {[%clk 0:00:36]}  Ke4 {[%clk 0:00:34]} 111. Bf6 {[%clk 0:00:36]}  Kf3 {[%clk 0:00:34]} 112. Bd8 {[%clk 0:00:36]}  Kg4 {[%clk 0:00:35]} 113. Kc3 {[%clk 0:00:35]}  Kf5 {[%clk 0:00:36]} 114. Kb2 {[%clk 0:00:35]}  Kg6 {[%clk 0:00:34]} 115. Kc3 {[%clk 0:00:36]}  Kf7 {[%clk 0:00:34]} 116. Kb2 {[%clk 0:00:36]}  Ke8 {[%clk 0:00:35]} 117. Bg5 {[%clk 0:00:35]}  Kd7 {[%clk 0:00:36]} 118. Kc3 {[%clk 0:00:36]}  Kd6 {[%clk 0:00:36]} 119. Kb2 {[%clk 0:00:36]}  Kc5 {[%clk 0:00:37]} 120. Kc3 {[%clk 0:00:37]}  Kb5 {[%clk 0:00:37]} 121. Kb2 {[%clk 0:00:38]}  Ka4 {[%clk 0:00:38]} 122. Bf6 {[%clk 0:00:38]}  Bf7 {[%clk 0:00:38]} 123. Bg5 {[%clk 0:00:38]}  Bg8 {[%clk 0:00:39]} 124. Be7 {[%clk 0:00:39]}  Kb5 {[%clk 0:00:39]} 125. Bg5 {[%clk 0:00:40]}  Kc4 {[%clk 0:00:40]} 126. Bf6 {[%clk 0:00:40]}  Kd3 {[%clk 0:00:40]} 127. Bg5 {[%clk 0:00:41]}  Bh7 {[%clk 0:00:39]} 128. Bd8 {[%clk 0:00:42]}  Ke2 {[%clk 0:00:39]} 129. Bg5 {[%clk 0:00:43]}  Kf3 {[%clk 0:00:40]} 130. Bd8 {[%clk 0:00:43]}  Kg4 {[%clk 0:00:40]} 131. Kc3 {[%clk 0:00:43]}  b2 {[%clk 0:00:40]} 132. Kxb2 {[%clk 0:00:44]}  Kf5 {[%clk 0:00:41]} 133. Bg5 {[%clk 0:00:43]}  Bg6 {[%clk 0:00:42]} 134. Kc3 {[%clk 0:00:42]}  Ke6 {[%clk 0:00:42]} 135. Kd4 {[%clk 0:00:43]}  Bf5 {[%clk 0:00:43]} 136. Ke3 {[%clk 0:00:43]}  Bg4 {[%clk 0:00:44]} 137. Kf4 {[%clk 0:00:44]}  Kd7 {[%clk 0:00:45]} 138. Kg3 {[%clk 0:00:43]}  Kc6 {[%clk 0:00:46]} 139. Kg2 {[%clk 0:00:43]}  Kb5 {[%clk 0:00:47]} 140. Kg3 {[%clk 0:00:44]}  Ka4 {[%clk 0:00:48]} 141. Kf4 {[%clk 0:00:41]}  Kb3 {[%clk 0:00:49]} 142. Kg3 {[%clk 0:00:41]}  Ka2 {[%clk 0:00:50]} 143. Kf4 {[%clk 0:00:42]}  Kb1 {[%clk 0:00:50]} 144. Ke5 {[%clk 0:00:43]}  Kc2 {[%clk 0:00:51]} 145. Kf4 {[%clk 0:00:43]}  Kd1 {[%clk 0:00:52]} 146. Ke5 {[%clk 0:00:44]}  Ke2 {[%clk 0:00:53]} 147. Kf4 {[%clk 0:00:45]}  Kf1 {[%clk 0:00:54]} 148. Ke5 {[%clk 0:00:45]}  Kg2 {[%clk 0:00:55]} 149. Kf6 {[%clk 0:00:46]}  Kh1 {[%clk 0:00:56]} 150. Ke5 {[%clk 0:00:47]}  Kg1 {[%clk 0:00:57]} 151. Kf6 {[%clk 0:00:48]}  Kf2 {[%clk 0:00:58]} 152. Ke5 {[%clk 0:00:48]}  Ke1 {[%clk 0:00:58]} 153. Kf6 {[%clk 0:00:49]}  Ke2 {[%clk 0:00:59]} 154. Ke5 {[%clk 0:00:50]}  Kd3 {[%clk 0:01:00]} 155. Kf6 {[%clk 0:00:51]}  Kc4 {[%clk 0:01:01]} 156. Ke7 {[%clk 0:00:52]}  Kb5 {[%clk 0:01:02]} 157. Kf6 {[%clk 0:00:53]}  Ka6 {[%clk 0:01:03]} 158. Ke7 {[%clk 0:00:54]}  Ka7 {[%clk 0:01:04]} 159. Kf7 {[%clk 0:00:54]}  Ka8 {[%clk 0:01:05]} 160. Kg7 {[%clk 0:00:55]}  Kb8 {[%clk 0:01:05]} 161. Kg6 {[%clk 0:00:56]}  Kb7 {[%clk 0:01:06]} 162. Kf6 {[%clk 0:00:57]}  Kc8 {[%clk 0:01:07]} 163. Kf7 {[%clk 0:00:58]}  Kc7 {[%clk 0:01:08]} 164. Kg7 {[%clk 0:00:59]}  Kc8 {[%clk 0:01:09]} 165. Kg6 {[%clk 0:01:00]}  Kd7 {[%clk 0:01:10]} 166. Kf6 {[%clk 0:01:01]}  Kd6 {[%clk 0:01:11]} 167. Kg7 {[%clk 0:01:01]}  Kd5 {[%clk 0:01:12]} 168. Kg6 {[%clk 0:01:02]}  Ke4 {[%clk 0:01:12]} 169. Kf6 {[%clk 0:01:03]}  Kf3 {[%clk 0:01:13]} 170. Kf7 {[%clk 0:01:04]}  Kg3 {[%clk 0:01:14]} 171. Ke7 {[%clk 0:01:05]}  Kh3 {[%clk 0:01:15]} 172. Kf6 {[%clk 0:01:04]}  Kg2 {[%clk 0:01:16]} 173. Kg6 {[%clk 0:01:05]}  Kh1 {[%clk 0:01:17]} 174. Kf7 {[%clk 0:01:06]}  Kh2 {[%clk 0:01:18]} 175. Kf6 {[%clk 0:01:07]}  Kg1 {[%clk 0:01:19]} 176. Kg6 {[%clk 0:01:08]}  Kg2 {[%clk 0:01:20]} 177. Kg7 {[%clk 0:01:09]}  Kf1 {[%clk 0:01:21]} 178. Kh6 {[%clk 0:01:10]}  Kf2 {[%clk 0:01:21]} 179. Kg6 {[%clk 0:01:11]}  Ke1 {[%clk 0:01:22]} 180. Kg7 {[%clk 0:01:12]}  Ke2 {[%clk 0:01:23]} 181. Kf7 {[%clk 0:01:13]}  Kd1 {[%clk 0:01:24]} 182. Kf6 {[%clk 0:01:13]} 1/2-1/2


[Site "https://www.chess.com"]

[Event "Titled Tuesday Blitz July 25 Early 2023"]
[White "Sarana, Alexey"]
[Black "ChessBrah"]
[WhiteFideId "24133795"]
[WhiteElo "3052"]
[BlackElo "2944"]
[Result "0-1"]
[Round "10"]
[TimeControl "180+2"]
[Date "2023.07.25"]
[WhiteClock "0:00:04"]
[BlackClock "0:00:07"]
[Board "6"]

1. d4 {[%clk 0:02:57]}  Nf6 {[%clk 0:03:00]} 2. c4 {[%clk 0:02:52]}  e6 {[%clk 0:03:00]} 3. Nc3 {[%clk 0:02:51]}  Bb4 {[%clk 0:03:00]} 4. Qc2 {[%clk 0:02:51]}  d6 {[%clk 0:02:58]} 5. Nf3 {[%clk 0:02:50]}  O-O {[%clk 0:02:58]} 6. Bd2 {[%clk 0:02:50]}  b6 {[%clk 0:02:56]} 7. e4 {[%clk 0:02:50]}  Bb7 {[%clk 0:02:55]} 8. Bd3 {[%clk 0:02:51]}  e5 {[%clk 0:02:53]} 9. a3 {[%clk 0:02:37]}  Bxc3 {[%clk 0:02:51]} 10. Bxc3 {[%clk 0:02:22]}  exd4 {[%clk 0:02:47]} 11. Bxd4 {[%clk 0:02:19]}  Nxe4 {[%clk 0:02:44]} 12. Bxe4 {[%clk 0:02:15]}  Bxe4 {[%clk 0:02:43]} 13. Qxe4 {[%clk 0:02:14]}  Re8 {[%clk 0:02:44]} 14. Be5 {[%clk 0:01:58]}  Nd7 {[%clk 0:02:43]} 15. O-O {[%clk 0:01:52]}  Nxe5 {[%clk 0:02:42]} 16. Nd2 {[%clk 0:01:51]}  Qf6 {[%clk 0:02:38]} 17. Qc2 {[%clk 0:01:48]}  Nc6 {[%clk 0:02:34]} 18. Rfe1 {[%clk 0:01:44]}  a5 {[%clk 0:02:31]} 19. Ne4 {[%clk 0:01:43]}  Qg6 {[%clk 0:02:31]} 20. Re3 {[%clk 0:01:36]}  Nd4 {[%clk 0:01:47]} 21. Qd3 {[%clk 0:01:35]}  Nf5 {[%clk 0:01:47]} 22. Re2 {[%clk 0:01:34]}  Re6 {[%clk 0:01:44]} 23. Rae1 {[%clk 0:01:33]}  Rae8 {[%clk 0:01:44]} 24. g3 {[%clk 0:01:32]}  Ne7 {[%clk 0:01:30]} 25. f4 {[%clk 0:01:16]}  h6 {[%clk 0:01:27]} 26. b4 {[%clk 0:01:05]}  axb4 {[%clk 0:01:26]} 27. axb4 {[%clk 0:01:06]}  Nc6 {[%clk 0:01:09]} 28. b5 {[%clk 0:01:06]}  Nb4 {[%clk 0:01:04]} 29. Qf3 {[%clk 0:01:05]}  f5 {[%clk 0:00:26]} 30. Nc3 {[%clk 0:00:56]}  Nc2 {[%clk 0:00:17]} 31. Qd5 {[%clk 0:00:46]}  Nxe1 {[%clk 0:00:16]} 32. Rxe1 {[%clk 0:00:43]}  Qf7 {[%clk 0:00:16]} 33. Rf1 {[%clk 0:00:42]}  Re1 {[%clk 0:00:16]} 34. Qd3 {[%clk 0:00:39]}  R8e3 {[%clk 0:00:15]} 35. Qd4 {[%clk 0:00:38]}  Qe6 {[%clk 0:00:15]} 36. Rxe1 {[%clk 0:00:15]}  Rxe1+ {[%clk 0:00:15]} 37. Kf2 {[%clk 0:00:16]}  Rh1 {[%clk 0:00:13]} 38. Kg2 {[%clk 0:00:17]}  Rc1 {[%clk 0:00:13]} 39. Qd2 {[%clk 0:00:16]}  Qe1 {[%clk 0:00:09]} 40. Qd5+ {[%clk 0:00:16]}  Kh8 {[%clk 0:00:10]} 41. Kh3 {[%clk 0:00:11]}  Qxc3 {[%clk 0:00:07]} 42. Qxf5 {[%clk 0:00:06]}  Qxc4 {[%clk 0:00:06]} 43. Qc8+ {[%clk 0:00:06]}  Qg8 {[%clk 0:00:06]} 44. Qd7 {[%clk 0:00:06]}  Rc5 {[%clk 0:00:07]} 45. g4 {[%clk 0:00:07]}  Qf8 {[%clk 0:00:06]} 46. f5 {[%clk 0:00:07]}  Kh7 {[%clk 0:00:07]} 47. Kg3 {[%clk 0:00:06]}  Qf6 {[%clk 0:00:07]} 48. Qe8 {[%clk 0:00:04]}  Qe5+ {[%clk 0:00:07]} 0-1


[Site "https://www.chess.com"]